Cogmind - Beta 13 @@@ ROGUE MODE // 2024.06.02 @ 13:38:31 Player: delto Result: Destroyed by Y-45 Defender with Heavy Assault Rifle Performance ------------- Evolutions (1) 500 Regions Visited (3) 600 Robots Destroyed (14) 70 Value Destroyed (199) 199 Prototype IDs (0) 0 Alien Tech Used (0) 0 Bonus (0) 0 TOTAL SCORE: 1369 Bonus ------- None Cogmind --------- Core Integrity 0/400 Matter 285/300 Energy 172/265 System Corruption 6% Temperature Cool (12) Movement Flying (34) Location -9/Storage Parts ------- > --- POWER (1) -------- Improved Ion Engine > --- PROPULSION (3) --- Flight Unit Flight Unit Flight Unit > --- UTILITY (3) ------ Improved Signal Interpreter Improved Targeting Computer > --- WEAPON (2) ------- Small Laser Shotgun > --- INVENTORY (5) ---- Improved Hover Unit Flight Unit Peak State ------------ > --- POWER ------------ Light Ion Engine > --- PROPULSION ------- Improved Hover Unit Improved Hover Unit Improved Hover Unit > --- UTILITY ---------- Sensor Array Improved Signal Interpreter Improved Targeting Computer > --- WEAPON ----------- Assault Rifle Light Assault Rifle > --- INVENTORY -------- Light Ion Engine Improved Hover Unit Improved Propulsion Shielding Shield Generator [Rating: 15] Favorites ----------- Power Light Ion Engine Engine Light Ion Engine Propulsion Improved Hover Unit Treads Light Treads Wheel Wheel Hover Unit Improved Hover Unit Flight Unit Flight Unit Utility Improved Targeting Computer Device Sensor Array Storage Small Storage Unit Processor Improved Targeting Computer Protection Improved Propulsion Shielding Weapon Assault Rifle Energy Gun Small Laser Ballistic Gun Assault Rifle Build | -11 -10 -9 -9 ------- Run | Yrd Mat Mat Sto Slots Evolved 2 | . . 2 . Power . | . . . . Propulsion 1 | . . 1 . Utility 1 | . . 1 . Weapon . | . . . . Parts Attached 34 | 7 9 3 15 Power 7 | 1 1 . 5 Engine 7 | 1 1 . 5 Core . | . . . . Reactor . | . . . . Propulsion 13 | 2 4 1 6 Treads 1 | 1 . . . Leg . | . . . . Wheel 1 | 1 . . . Hover 8 | . 4 1 3 Flight 3 | . . . 3 Utility 8 | 2 3 2 1 Device 3 | 1 2 . . Storage 1 | 1 . . . Processor 3 | . 1 2 . Hackware . | . . . . Protection 1 | . . . 1 Artifact . | . . . . Weapon 6 | 2 1 . 3 Energy Gun 1 | . . . 1 Energy Cannon . | . . . . Ballistic Gun 5 | 2 1 . 2 Ballistic Cannon . | . . . . Launcher . | . . . . Special Weapon . | . . . . Impact Weapon . | . . . . Slashing Weapon . | . . . . Piercing Weapon . | . . . . Special Melee Weapon . | . . . . Unidentified Prototypes . | . . . . Parts Lost 13 | . . . 13 Power 5 | . . . 5 Propulsion 4 | . . . 4 Utility 2 | . . . 2 Weapon 2 | . . . 2 Highest Loss Streak 9 | . . . 9 To Critical Strikes . | . . . . Average Slot Usage (%) 93 | . 100 100 84 Engine 11 | . 14 11 9 Treads 1 | . 4 . . Wheel 1 | . 4 . . Hover 22 | . 18 33 21 Flight 2 | . . . 5 Device 9 | . 15 11 4 Storage 1 | . 3 . . Processor 17 | . 9 22 22 Protection 2 | . . . 5 Energy Gun 1 | . . . 2 Ballistic Gun 20 | . 28 22 12 Naked Turns . | . . . . Heaviest Build 15 | 15 15 7 11 Greatest Support 21 | 20 14 21 21 Greatest Overweight (x) 1 | 1 1 . . Average Overweight (x) . | . . . . Largest Inventory Capacity 8 | 8 8 5 5 Average Capacity 5 | 7 5 5 5 Most Carried 8 | 8 8 5 5 Average Carried 4 | 5 4 3 3 Final Capacity 8 | 8 5 5 5 Final Carried 8 | 8 4 5 2 Class Distribution -------------------- 100% | Mutant Dominant Class ---------------- Mutant | -10/Materials Mutant | -9/Materials Mutant | -9/Storage Resources | -11 -10 -9 -9 ----------- Run | Yrd Mat Mat Sto Matter Collected 566 | 218 180 40 128 Remotely . | . . . . Salvage Created 298 | 40 17 59 182 Parts 36 | 7 6 3 20 Haulers Intercepted . | . . . . Recyclers Shooed . | . . . . Parts Field Recycled . | . . . . Retrieved Matter . | . . . . Parts Self-Destructed . | . . . . Prevented . | . . . . Kills | -11 -10 -9 -9 ------- Run | Yrd Mat Mat Sto Combat Hostiles Destroyed 11 | . . 3 8 Melee 1 | . . . 1 Guns 10 | . . 3 7 Classes Destroyed 5 | 1 1 1 2 Tunneler 2 | 2 . . . Watcher 1 | . 1 . . Swarmer 9 | . . 3 6 Grunt 1 | . . . 1 Sentry 1 | . . . 1 Best Kill Streak 6 | 1 1 3 6 Combat Bots Only 6 | . . 3 6 Max Kills in Single Turn 1 | 1 1 1 1 Gunslinging . | . . . . Exploded . | . . . . Melee 1 | . . . 1 Uniques/NPCs Destroyed . | . . . . Combat | -11 -10 -9 -9 -------- Run | Yrd Mat Mat Sto Hostile Shots Fired 172 | . . 6 166 Missed 58 | . . 3 55 Damage Taken 1182 | . . 43 1139 Core 406 | . . . 406 Absorbed by Shields . | . . . . Redirected to Shielding 103 | . . . 103 Core Remaining (%) 100 | 100 100 . . Volleys Fired 43 | 3 4 5 31 Largest 2 | 2 2 2 2 Hottest 63 | 40 40 40 63 Shots Fired 60 | 6 8 10 36 Gun 60 | 6 8 10 36 Cannon . | . . . . Launcher . | . . . . Special . | . . . . Kinetic 55 | 6 8 10 31 Thermal 5 | . . . 5 Explosive . | . . . . Electromagnetic . | . . . . Robot Hit Streak 8 | 1 3 4 8 Robot Miss Streak 3 | 2 2 3 2 Penetration Max . | . . . . Secondary Targets 1 | . . . 1 Max Gunslinging Chain 1 | . . . 1 Shots Hit Robots 35 | 2 4 5 24 Core Hits 23 | 3 1 4 15 Critical Kills . | . . . . Critical Parts Destroyed . | . . . . Critical Strikes . | . . . . Melee Attacks . | . . . . Impact . | . . . . Slashing . | . . . . Piercing . | . . . . Sneak Attacks . | . . . . Combat Hostiles . | . . . . Follow-up Attacks . | . . . . Damage Inflicted 398 | 50 42 57 249 Guns 389 | 50 42 57 240 Cannons . | . . . . Explosions . | . . . . Melee . | . . . . Ramming 9 | . . . 9 Kinetic 333 | 50 42 57 184 Thermal 56 | . . . 56 Explosive . | . . . . Electromagnetic . | . . . . Impact . | . . . . Slashing . | . . . . Piercing . | . . . . Highest Corruption 6 | . . . 6 Average Corruption 5 | . . . 5 Corruption Purged . | . . . . Corruption Blocked . | . . . . Effects 7 | . . . 7 Message Errors 1 | . . . 1 Matter Fused 1 | . . . 1 Energy Discharges 3 | . . . 3 Parts Rejected 2 | . . . 2 Overload Shots . | . . . . Overflow Damage . | . . . . Projectiles . | . . . . Explosions . | . . . . Melee . | . . . . Knockbacks . | . . . . Impact . | . . . . Kinetic . | . . . . Secondary . | . . . . Self-Inflicted Damage 4 | . . . 4 Shots . | . . . . Rammed 3 | . . . 3 Targets Rammed 3 | . . . 3 Kicked . | . . . . Crushed . | . . . . Highest Temperature 24 | . 4 . 24 Average Temperature 7 | . 3 . 8 Received Heat Transfer 240 | . . . 240 Siege Activations . | . . . . Robots Corrupted . | . . . . Combat Hostiles . | . . . . Parts Fried . | . . . . Impact Corruptions . | . . . . Robots Melted . | . . . . Combat Hostiles . | . . . . Parts Melted . | . . . . Heat Transferred 125 | . . . 125 Parts Sabotaged . | . . . . Parts Stolen . | . . . . Parts Stripped . | . . . . Power Chain Reactions . | . . . . Alert | -11 -10 -9 -9 ------- Run | Yrd Mat Mat Sto Peak Influence 416 | 10 56 93 416 Initial 39 | . 6 23 39 Average 104 | 3 44 33 216 Maximum Alert Level 2 | . . . 2 Low Security (%) 79 | 100 100 100 48 Level 1 19 | . . . 48 Level 2 . | . . . 2 Level 3 . | . . . . Level 4 . | . . . . Level 5 . | . . . . High Security . | . . . . Max Security . | . . . . Squads Dispatched 2 | . 1 . 1 Investigation . | . . . . Extermination . | . . . . Reinforcement 1 | . 1 . . Assault . | . . . . Garrison 1 | . . . 1 Intercept . | . . . . Searches Triggered . | . . . . Construction Impeded . | . . . . Haulers Reinforced . | . . . . Active Scanning Responses . | . . . . Cargo Convoy Interrupts . | . . . . Stealth | -11 -10 -9 -9 --------- Run | Yrd Mat Mat Sto Distress Signals 1 | . . . 1 Communications Jammed . | . . . . Distress Signals . | . . . . Times Spotted 33 | . 3 3 27 Peak Tracking Total 12 | . 1 3 12 Tactical Retreats 6 | . . . 6 Traps | -11 -10 -9 -9 ------- Run | Yrd Mat Mat Sto Traps Triggered 3 | . . 1 2 Indirectly . | . . . . Trap Hack Attempts . | . . . . Triggered . | . . . . Disarmed . | . . . . Reprogrammed . | . . . . Reused . | . . . . Traps Extracted . | . . . . Installed . | . . . . Triggered . | . . . . Machines | -11 -10 -9 -9 ---------- Run | Yrd Mat Mat Sto Machines Disabled . | . . . . Max in Single Turn . | . . . . Machines Repaired . | . . . . Machines Dismantled . | . . . . Machines Sabotaged . | . . . . Overloaded Fab Kills . | . . . . Hacking | -11 -10 -9 -9 --------- Run | Yrd Mat Mat Sto Machines Accessed 5 | . 2 1 2 Terminals 5 | . 2 1 2 Fabricators . | . . . . Repair Stations . | . . . . Recycling Units . | . . . . Scanalyzers . | . . . . Garrison Access . | . . . . Total Hacks 7 | . 4 1 2 Successful 5 | . 4 . 1 Failed 2 | . . 1 1 Catastrophic . | . . . . Database Lockouts . | . . . . Manual 3 | . 2 1 . Terminals 7 | . 4 1 2 Fabricators . | . . . . Repair Stations . | . . . . Recycling Units . | . . . . Scanalyzers . | . . . . Garrison Access . | . . . . Terminal Hacks 3 | . 2 . 1 Open Door 1 | . . . 1 Alert Level 1 | . 1 . . Locate Traps 1 | . 1 . . Fabricator Hacks . | . . . . Repair Station Hacks . | . . . . Recycling Unit Hacks . | . . . . Scanalyzer . | . . . . Garrison Access Hacks . | . . . . Unauthorized Hacks 2 | . 2 . . Terminals 2 | . 2 . . Botnet 2 | . 2 . . Fabricators . | . . . . Repair Stations . | . . . . Recycling Units . | . . . . Scanalyzers . | . . . . Garrison Access . | . . . . Data Cores Recovered . | . . . . Used . | . . . . Hacking Detections 3 | . 2 . 1 Full Trace Events . | . . . . Feedback Events . | . . . . Feedback Blocked . | . . . . Robot Schematics Acquired . | . . . . Robots Built . | . . . . Authchips . | . . . . Time . | . . . . Total Robot Build Rating . | . . . . Part Schematics Acquired . | . . . . Parts Built . | . . . . Authchips . | . . . . Time . | . . . . Total Part Build Rating . | . . . . Parts Repaired . | . . . . Time . | . . . . Parts Recycled . | . . . . Recycled Matter . | . . . . Retrieved Matter . | . . . . Retrieved Components . | . . . . Parts Scanalyzed . | . . . . Part Schematics Acquired . | . . . . Parts Damaged . | . . . . Bothacking | -11 -10 -9 -9 ------------ Run | Yrd Mat Mat Sto Used RIF Installer . | . . . . Robots Hacked . | . . . . Non-combat . | . . . . Combat . | . . . . Robot Hacks Applied . | . . . . Relay Couplers Released . | . . . . Fabnet Peak Effective % . | . . . . Robots Rewired . | . . . . Allies Hacked . | . . . . Hacks Repelled . | . . . . Allies | -11 -10 -9 -9 -------- Run | Yrd Mat Mat Sto Total Allies . | . . . . Largest Group . | . . . . Highest-Rated Group . | . . . . Highest-Rated Ally . | . . . . Total Orders . | . . . . Ally Attacks . | . . . . Total Damage . | . . . . Kills . | . . . . Allies Corrupted . | . . . . Allies Melted . | . . . . Intel | -11 -10 -9 -9 ------- Run | Yrd Mat Mat Sto Robot Analysis Total . | . . . . Derelict Logs Recovered . | . . . . Drone Launches . | . . . . Drone Recoveries . | . . . . Exploration | -11 -10 -9 -9 ------------- Run | Yrd Mat Mat Sto Turns Passed 709 | 87 224 120 278 Spaces Moved 837 | 64 272 120 381 Core 1 | 1 . . . Treads 3 | 3 . . . Legs . | . . . . Wheels 120 | 60 60 . . Hover 625 | . 212 120 293 Flight 88 | . . . 88 Fastest Speed 34 | 50 56 52 34 Average Speed 58 | 94 64 52 49 Slowest Speed 160 | 160 125 52 60 Overloaded Moves . | . . . . Propulsion Burnouts . | . . . . Robots Hopped . | . . . . Cave-ins Triggered . | . . . . Exploration Rate (%) 30 | 5 35 11 69 Regions Visited 3 Branch Regions 1 Pre-discovered Areas . | . . . . Known Exits Taken 2 | . 1 1 . Unknown Exits Taken 1 | 1 . . . Scrap Searched . | . . . . Spaces Dug . | . . . . Terrain Destroyed . | . . . . Melee . | . . . . Projectile . | . . . . AOE . | . . . . Terrain Rammed . | . . . . Walls Destroyed . | . . . . Machines Disabled . | . . . . Actions | -11 -10 -9 -9 --------- Run | Yrd Mat Mat Sto Total 1003 | 81 316 168 438 Wait 35 | . . 35 . Move 834 | 63 271 119 381 Hop . | . . . . Pick Up 34 | 8 14 5 7 Fast Attach 12 | 7 . . 5 Attach 11 | . . 2 9 Detach . | . . . . Swap 11 | . 9 1 1 Drop 20 | . 18 1 1 Fire 43 | 3 4 5 31 Melee . | . . . . Ram 3 | . . . 3 Kick . | . . . . Crush . | . . . . Escape Stasis . | . . . . Rewire . | . . . . Trap . | . . . . Miscellaneous . | . . . . Route ------- -11/Scrapyard -10/Materials -9/Materials -9/Storage History --------- Turn | Location | Event 29 | -11/Scrapyard | Discovered new exit (range 15) 88 | -11/Scrapyard | Entered Materials 297 | -10/Materials | Discovered new exit (range 15) 305 | -10/Materials | Identified exit to Materials 312 | -10/Materials | Entered another Materials area 312 | -9/Materials | Evolved 2 slots: Propulsion x1, Utility x1 357 | -9/Materials | Build established: Mutant 401 | -9/Materials | Discovered new exit (range 15) 432 | -9/Materials | Identified exit to Storage 432 | -9/Materials | Entered Storage 563 | -9/Storage | Core integrity fell below 50% 616 | -9/Storage | Lost 9 parts (4p3n1u1w) 623 | -9/Storage | Garrison activated, responded to threat 649 | -9/Storage | Core integrity fell below 20% 710 | -9/Storage | Destroyed by Y-45 Defender with Heavy Assault Rifle Last Messages --------------- 00623_ W-16 Scout calls for garrison support. 00623_ ALERT: Activating Garrison Access S001. 00624_ G-34 Mercenary emerges from the garrison. 00646_ G-34 Mercenary destroyed. 00648_ Acquired 38 matter. 00649_ Acquired Sml. Laser. 00658_ Lgt. Assault Rifle destroyed. 00661_ Imp. Hover Unit destroyed. 00669_ K-01 Serf cleans the Garrison Access. 00685_ Acquired Shotgun. 00688_ Lgt. Ion Engine destroyed. 00695_ Y-45 Defender destroyed. 00695_ Switching to secondary target: G-34 Mercenary. 00698_ Imp. Propulsion Shielding destroyed. 00698_ Acquired 44 matter. 00699_ K-01 Serf collects debris. 00699_ Acquired Imp. Ion Engine. 00702_ K-01 Serf collects debris. 00705_ System corrupted: Matter fused (-5). 00707_ Critical hit (Burn: +37). Map ----- +----------------------------------------------------+ | ????????????# ? # # #???????# ###### | | ????????????# "??" # # ! ######### ###????# | | ????????????# "???" # # + #+#######T | | ????????????# "????" + # # / | | ????????????# ""???" # # # #### # """ "" | | ????????????# ""??" # # # #??# # """ "" | | ????????????# """" + # %/ # #??# # """ "" | | ????????????# # + / # #??# # """ | | ????????????#############+#######+#### # """ | | ???????????????????????#T ?# ## + | | ??#####????????????????###"### ## #######+## | | ??#"""#??????????????????????# ! ## ##????# #? | | ###"T"###????????????????????# #! ###### ## | | #????????????????????# +%= ^ | | """ #########????????????# #[= ^ | | """ ! ##== ===#????????????# = # #######+# | | """ ##==! ==#????????????# = ## ### | | ##== !#????????????# ## #?# | | """ ## !#????????????# ! ## ### | | """ #### ##????????????# !+ + | | """ #?#T #????????????######### ### | | #?## #??????????###########"#### | | ###+#########+############## ## # | | ^ k ## # | | ^ Y + """ !# | | @ ## """ # | | ############################ ## """ # | | ???????????????????????????######## ######## | | ??????????????????????????????????#########??????? | | | | | | | | | | | | | | | | | | | | | | | | | | | | | | | | | | | | | | | | | | | +----------------------------------------------------+ Best States ------------- Heat Dissipation 28 Energy Generation 12 Energy Capacity 265 Matter Stores 300 Matter Capacity 300 Sight Range 16 Robot Scan Range 14 Terrain Scan Density 10 ECM Strength 1 Propulsion Shielding 66 Evasion (%) 63 Targeting Accuracy 6 Item Schematics ----------------- None Robot Schematics ------------------ None Fabricated ------------ Nothing Alien Tech Used ----------------- None Achievements -------------- Fist Fight Challenges ------------ None Game ------ Seed SpikedOpticalDeconstructor Manual? 0 Play Time 00:15:47 Cumulative 35.3 hours Start 2024.06.02 @ 13:23:28 End 2024.06.02 @ 13:38:31 Sessions 1 Manual Loads 0 Difficulty Rogue Special Mode None Game No. 43 Rogue 43 Adventurer 0 Explorer 0 Win Type - Total 0 Types 0/0/0/0/0/0/0/0/0 Lore% 12 Gallery% 34 Achievement% 23 Wizard Run 0 Options --------- Layout 0 ASCII 0 Keyboard 0 Movement Mouse Keybinds 0 Fullscreen 1 Font 24/Smallcaps Map View 76x50 Zoom Use 0% Tactical HUD 1 Map Filters NONE Filters NONE Steam 1 RUN: a4536029-4cbe-4c94-bcd2-5d9b2634822f